bitfinex/quotes_BTCUSD_20241226
["timestamp","ask_amount","ask_price","bid_price","bid_amount"]
[1735215795233,8.56e-05,95748.0,95747.0,0.47925762]
[1735215795441,0.0010856,95748.0,95747.0,0.58825762]
[1735215795653,0.00103168,95748.0,95747.0,0.83825762]
[1735215795851,0.00103168,95748.0,95747.0,0.86708945]
[1735215796779,3.168e-05,95748.0,95747.0,0.85008945]
[1735215797122,8.55e-05,95769.0,95767.0,0.28634]
[1735215797334,8.55e-05,95769.0,95767.0,0.42372016]
[1735215798129,8.55e-05,95769.0,95767.0,0.44672016]
[1735215798480,8.55e-05,95769.0,95767.0,0.54672016]
[1735215798680,0.0010855,95768.0,95767.0,0.55572016]
[1735215799012,0.0010855,95768.0,95767.0,0.58341589]
[1735215799534,0.0010855,95768.0,95767.0,0.57641589]
[1735215800081,8.55e-05,95768.0,95767.0,0.57641589]
[1735215800303,8.55e-05,95768.0,95767.0,0.58541589]
[1735215801343,0.1600455,95786.0,95773.0,0.1]
[1735215801538,0.1602013,95786.0,95785.0,0.2088]
[1735215803125,0.1602013,95786.0,95785.0,0.2178]
[1735215803322,0.1602013,95786.0,95785.0,0.014]
[1735215803537,0.1602013,95786.0,95785.0,0.005]
[1735215803813,0.1602013,95786.0,95785.0,0.009]
[1735215804150,0.1602013,95786.0,95785.0,0.0307813]
[1735215804348,0.1602013,95786.0,95785.0,0.018]
[1735215804774,0.1602013,95786.0,95781.0,0.208808]
[1735215805186,0.1602013,95786.0,95785.0,0.005]
[1735215805949,0.1602013,95786.0,95781.0,0.208808]
[1735215806102,0.1602013,95786.0,95785.0,0.009]
[1735215806687,0.1602013,95786.0,95785.0,0.0307808]
[1735215806886,0.1602013,95786.0,95785.0,0.0267808]
[1735215807670,0.1602013,95786.0,95785.0,0.005]
[1735215808069,0.1602013,95786.0,95785.0,0.11298632]
[1735215808297,0.1602013,95786.0,95785.0,0.13598632]
[1735215808497,0.1602013,95786.0,95785.0,0.14098632]
[1735215808907,0.1602013,95786.0,95785.0,0.13598632]
[1735215809243,0.1602013,95786.0,95785.0,0.59761576]
[1735215809442,0.1602013,95786.0,95785.0,0.67557191]
[1735215809685,0.1602013,95786.0,95785.0,0.67957191]
[1735215809999,0.1602013,95786.0,95785.0,0.68457191]
[1735215810200,1e-08,95786.0,95785.0,0.68457191]
[1735215810404,1e-08,95786.0,95785.0,0.67557191]
[1735215810580,1e-08,95786.0,95785.0,0.68457191]
[1735215810981,1e-08,95786.0,95785.0,1.01958761]
[1735215811145,1e-08,95786.0,95785.0,1.02358761]
[1735215811344,8.55e-05,95799.0,95794.0,0.417562]
[1735215811594,8.55e-05,95799.0,95795.0,0.15876277]
[1735215812455,8.55e-05,95799.0,95797.0,0.023]
[1735215812733,8.55e-05,95799.0,95798.0,0.12802998]
[1735215812903,8.55e-05,95799.0,95798.0,0.81540198]
[1735215813132,0.0002,95809.0,95808.0,0.1]
[1735215813304,0.0002,95809.0,95808.0,0.46672367]
[1735215813488,0.0002,95809.0,95808.0,0.58868016]
[1735215814564,0.12617775,95870.0,95808.0,0.58868016]
[1735215814565,0.1,95914.0,95862.0,0.023]
[1735215814754,0.00060558,95864.0,95863.0,0.37802926]
[1735215814953,0.00051998,95864.0,95863.0,0.47698632]
[1735215815095,1e-08,95864.0,95863.0,0.47698632]
[1735215815297,1e-08,95864.0,95863.0,0.50771911]
[1735215815519,1e-08,95864.0,95863.0,0.40771911]
[1735215815716,1e-08,95864.0,95863.0,0.50771911]
[1735215815917,1e-08,95864.0,95863.0,0.40771911]
[1735215816140,1e-08,95864.0,95863.0,0.25998632]
[1735215816342,1e-08,95864.0,95863.0,0.26898632]
[1735215816547,1e-08,95864.0,95863.0,0.25998632]
[1735215816946,1e-08,95864.0,95863.0,0.26898632]
[1735215817268,1e-08,95864.0,95863.0,0.13122604]
[1735215817470,1e-08,95864.0,95863.0,0.20539567]
[1735215818024,1e-08,95864.0,95863.0,0.19939567]
[1735215818203,1e-08,95864.0,95863.0,0.20839567]
[1735215818402,1e-08,95864.0,95863.0,0.14322604]
[1735215818648,1e-08,95864.0,95863.0,0.018]
[1735215818822,1e-08,95864.0,95863.0,0.009]
[1735215819024,1e-08,95864.0,95863.0,0.015]
[1735215819295,1e-08,95864.0,95863.0,0.006]
[1735215819439,1e-08,95864.0,95862.0,0.208633]
[1735215819645,1e-08,95864.0,95863.0,0.009]
[1735215819849,1e-08,95864.0,95863.0,0.006]
[1735215820053,1e-08,95864.0,95863.0,0.15335712]
[1735215820259,1e-08,95864.0,95863.0,0.16235712]
[1735215820513,1e-08,95864.0,95863.0,0.15335712]
[1735215820682,8.551e-05,95864.0,95863.0,0.11898632]
[1735215820998,8.551e-05,95864.0,95863.0,0.006]
[1735215821302,8.551e-05,95864.0,95863.0,0.015]
[1735215821499,8.551e-05,95864.0,95863.0,0.009]
[1735215823015,8.551e-05,95864.0,95862.0,0.208633]
[1735215823219,8.551e-05,95864.0,95863.0,0.006]
[1735215824372,8.551e-05,95864.0,95863.0,0.009]
[1735215824577,8.551e-05,95864.0,95854.0,0.208648]
[1735215824702,8.551e-05,95864.0,95863.0,0.006]
[1735215825132,8.551e-05,95864.0,95854.0,0.208648]
[1735215825327,0.12626326,95864.0,95863.0,0.006]
[1735215825544,0.00706695,95864.0,95863.0,0.006]
[1735215825927,0.00706695,95864.0,95863.0,0.009]
[1735215826146,8.551e-05,95864.0,95863.0,0.009]
[1735215826376,8.551e-05,95864.0,95863.0,0.012]
[1735215826558,8.551e-05,95864.0,95863.0,0.019]
[1735215827225,8.551e-05,95864.0,95863.0,0.003]
[1735215827423,8.551e-05,95864.0,95854.0,0.208648]
[1735215827652,8.551e-05,95864.0,95863.0,0.007]
[1735215827851,8.551e-05,95864.0,95863.0,0.01]
[1735215828446,8.551e-05,95864.0,95863.0,0.007]
[1735215829039,0.12617775,95873.0,95854.0,0.211648]
[1735215829214,0.12617775,95864.0,95854.0,0.208648]
[1735215829443,0.12617775,95864.0,95854.0,0.215648]
[1735215829651,0.12617775,95870.0,95863.0,0.003]
[1735215829863,0.00015585,95873.0,95863.0,0.01]
[1735215830274,0.00015585,95873.0,95863.0,0.003]
[1735215830852,0.00015585,95873.0,95866.0,0.208624]
[1735215832445,0.00015585,95873.0,95866.0,0.218624]
[1735215833370,0.00015585,95873.0,95866.0,0.211624]
[1735215833526,0.00015585,95873.0,95866.0,0.01]
[1735215834179,0.208611,95872.0,95866.0,0.017]
[1735215834351,0.208611,95872.0,95866.0,0.014]
[1735215834550,0.208622,95867.0,95866.0,0.017]
[1735215834753,0.53341061,95867.0,95866.0,0.017]
[1735215834980,0.78306986,95867.0,95866.0,0.014]
[1735215835408,0.78306986,95867.0,95866.0,0.001]
[1735215835743,0.29579229,95867.0,95866.0,0.004]
[1735215836070,0.08717029,95867.0,95866.0,0.001]
[1735215836304,0.08717029,95867.0,95866.0,0.004]
[1735215836683,0.14996029,95867.0,95866.0,0.003]
[1735215836882,0.08717029,95867.0,95866.0,0.003]
[1735215837093,0.08717029,95867.0,95866.0,0.007]
[1735215837347,0.08717029,95867.0,95866.0,0.004]
[1735215837552,0.08717029,95867.0,95866.0,0.003]
[1735215838143,0.08717029,95867.0,95866.0,0.004]
[1735215838795,0.00697029,95867.0,95866.0,0.007]
[1735215839175,0.208618,95869.0,95866.0,0.007]
[1735215839347,0.0069468,95868.0,95866.0,0.007]
[1735215839555,0.208622,95867.0,95866.0,0.007]
[1735215839759,0.21556983,95867.0,95866.0,0.007]
[1735215840006,0.21556983,95867.0,95863.0,0.000171]
[1735215840432,0.21556983,95867.0,95866.0,0.003]
[1735215840558,0.21556983,95867.0,95866.0,0.001]
[1735215840762,0.21556983,95867.0,95863.0,0.000171]
[1735215841173,0.21556983,95867.0,95863.0,0.001171]
[1735215841599,0.21556983,95867.0,95863.0,0.000171]
[1735215842011,0.21556983,95867.0,95866.0,0.003]
[1735215842633,0.21556983,95867.0,95863.0,0.000171]
[1735215842837,0.42419183,95867.0,95863.0,0.000171]
[1735215843038,0.1,95864.0,95863.0,0.004171]
[1735215843240,0.20398632,95864.0,95863.0,0.005171]
[1735215843443,0.21091046,95864.0,95863.0,0.005171]
[1735215843858,0.21091046,95864.0,95863.0,0.000171]
[1735215844070,1.43466583,95864.0,95863.0,0.000171]
[1735215844243,1.43466583,95864.0,95863.0,0.001171]
[1735215844244,1.61276583,95864.0,95863.0,0.001171]
[1735215844446,1.56182438,95864.0,95863.0,0.001171]
[1735215844657,1.56182438,95864.0,95863.0,0.000171]
[1735215844860,1.56182438,95864.0,95863.0,0.001171]
[1735215845481,1.44173638,95864.0,95863.0,0.001171]
[1735215845638,1.44173638,95864.0,95863.0,0.003171]
[1735215845997,1.44173638,95864.0,95863.0,0.001171]
[1735215846876,0.208706,95829.0,95811.0,0.0466]
[1735215847080,0.208706,95829.0,95812.0,0.0331355]
[1735215847279,0.00690512,95828.0,95810.0,0.284744]
[1735215847455,0.00913519,95828.0,95810.0,0.284744]
[1735215848204,0.00929093,95828.0,95810.0,0.284744]
[1735215848752,0.12617775,95820.0,95805.0,0.250555]
[1735215848954,0.12617775,95820.0,95805.0,0.208755]
[1735215849175,0.12617775,95820.0,95810.0,0.009]
[1735215849781,0.12617775,95820.0,95810.0,0.014]
[1735215850039,0.12617775,95820.0,95810.0,0.005]
[1735215850273,0.12617775,95820.0,95809.0,0.208746]
[1735215850467,0.12617775,95820.0,95810.0,0.003]
[1735215851012,0.20886274,95828.0,95810.0,0.003]
[1735215851215,0.00910407,95827.0,95809.0,0.208746]
[1735215851872,0.12617775,95820.0,95799.0,0.117803]
[1735215852080,0.12617775,95820.0,95810.0,0.009]
[1735215852289,0.00909258,95819.0,95799.0,0.28477]
[1735215852490,0.00909258,95819.0,95809.0,0.003]
[1735215852696,0.12617775,95820.0,95809.0,0.009]
[1735215852896,0.00909114,95818.0,95809.0,0.003]
[1735215853100,0.00909258,95819.0,95801.0,0.417531]
[1735215853295,0.0090897,95817.0,95810.0,0.003]
[1735215853456,0.12617775,95820.0,95810.0,0.003]
[1735215853657,0.00908827,95816.0,95801.0,0.417531]
[1735215853867,0.12617775,95820.0,95809.0,0.009]
[1735215854066,0.12617775,95820.0,95809.0,0.011]
[1735215854347,0.00909258,95819.0,95809.0,0.011]
[1735215854807,0.00909258,95819.0,95810.0,0.208746]
[1735215855195,0.12617775,95820.0,95810.0,0.208746]
[1735215855373,0.12617775,95820.0,95810.0,0.214746]
[1735215856134,0.12617775,95820.0,95810.0,0.208746]
[1735215856431,0.12617775,95820.0,95810.0,0.005]
[1735215856629,0.12617775,95820.0,95810.0,0.006]
[1735215856842,0.12617775,95820.0,95810.0,0.001]
[1735215857137,0.15966663,95820.0,95810.0,0.001]
[1735215857337,0.15966663,95820.0,95810.0,0.005]
[1735215857639,0.2178157,95819.0,95810.0,0.005]
[1735215858489,0.2178157,95819.0,95810.0,0.004]
[1735215858828,0.2178157,95819.0,95810.0,0.005]
[1735215859028,0.05862033,95818.0,95810.0,0.005]
[1735215859249,0.208733,95816.0,95809.0,0.000171]
[1735215859654,0.00900623,95815.0,95810.0,0.006]
[1735215860151,0.12617775,95840.0,95816.0,0.208732]
[1735215860351,0.15,95839.0,95816.0,0.208732]
[1735215860493,0.12617775,95840.0,95816.0,0.208732]
[1735215860684,0.12617775,95830.0,95816.0,0.208732]
[1735215861088,0.00906166,95827.0,95816.0,0.10398632]
[1735215861293,0.00906166,95827.0,95826.0,0.208711]
[1735215861505,0.24183152,95846.0,95826.0,0.208711]
[1735215861697,0.25784,95859.0,95827.0,0.18088632]
[1735215862031,0.12617775,95860.0,95827.0,0.18192982]
[1735215862413,0.208635,95862.0,95827.0,0.20492982]
[1735215862609,0.12617775,95870.0,95827.0,0.31102445]
[1735215862885,0.12617775,95870.0,95827.0,0.31398095]
[1735215862886,0.208631,95864.0,95827.0,0.31398095]
[1735215863363,0.33479375,95870.0,95827.0,0.41898095]
[1735215863514,0.33479375,95870.0,95827.0,0.41398095]
[1735215863923,0.015,95857.0,95828.0,0.123]
[1735215864163,0.015,95857.0,95840.0,0.20868]
[1735215864359,0.12617775,95850.0,95840.0,0.20868]
[1735215864817,0.015,95857.0,95840.0,0.20868]
[1735215865163,0.00688588,95856.0,95845.0,0.208669]
[1735215865385,0.015,95857.0,95845.0,0.208669]
[1735215865587,0.015,95857.0,95846.0,0.0417347]
[1735215866665,0.015,95857.0,95846.0,0.0437347]
[1735215867209,0.015,95857.0,95846.0,0.0497347]
[1735215867410,0.015,95857.0,95846.0,0.008]
[1735215867843,0.015,95857.0,95846.0,0.006]
[1735215868353,0.00688588,95856.0,95846.0,0.008]
[1735215868558,0.00688588,95856.0,95846.0,0.002]
[1735215868759,0.00688588,95856.0,95846.0,0.008]
[1735215868915,0.00688588,95856.0,95846.0,0.006]
[1735215869139,0.00688588,95856.0,95847.0,0.417329]
[1735215869332,0.015,95857.0,95847.0,0.417329]
[1735215869925,0.00692936,95856.0,95847.0,0.417329]
[1735215870160,0.00692936,95856.0,95847.0,0.208664]
[1735215870417,0.00692936,95856.0,95847.0,0.214664]
[1735215870865,0.00692936,95856.0,95847.0,0.2575982]
[1735215871449,0.00692936,95856.0,95847.0,0.214664]
[1735215871622,0.00692936,95856.0,95847.0,0.208664]
[1735215871981,0.00692936,95856.0,95847.0,0.214664]
[1735215872458,0.00692936,95856.0,95847.0,0.222664]
[1735215874394,0.00692936,95856.0,95848.0,0.208662]
[1735215874612,0.00692936,95856.0,95848.0,0.251796]
[1735215875168,0.00692936,95856.0,95848.0,0.208662]
[1735215875623,0.00914888,95856.0,95848.0,0.208662]
[1735215875831,0.00914888,95856.0,95841.0,0.208678]
[1735215876033,0.00914888,95856.0,95845.0,0.208668]
[1735215876239,0.00914888,95856.0,95848.0,0.008]
[1735215876600,0.00914888,95856.0,95848.0,0.012]
[1735215876826,0.00914888,95856.0,95849.0,0.208661]
[1735215877718,0.00914888,95856.0,95851.0,0.208657]
[1735215878161,0.015,95857.0,95850.0,0.0429329]
[1735215878335,0.015,95857.0,95851.0,0.208657]
[1735215878881,0.015,95857.0,95850.0,0.0429329]
[1735215879250,0.015,95857.0,95850.0,0.0489329]
[1735215879663,0.015,95857.0,95851.0,0.002]
[1735215879865,0.015,95857.0,95851.0,0.008]
[1735215880109,0.0091499,95856.0,95851.0,0.008]
[1735215881110,0.0092355,95856.0,95851.0,0.002]
[1735215881514,0.0092355,95856.0,95850.0,0.006]
[1735215881746,0.0092355,95856.0,95843.0,0.417345]
[1735215881964,0.0092355,95856.0,95850.0,0.002]
[1735215882172,0.0092355,95856.0,95851.0,0.006]
[1735215883101,0.0092355,95856.0,95850.0,0.008]
[1735215883280,0.0092355,95856.0,95850.0,0.006]
[1735215883507,0.0092355,95856.0,95851.0,0.002]
[1735215884154,0.04514908,95856.0,95851.0,0.002]
[1735215884449,0.04514908,95856.0,95851.0,0.008]
[1735215884450,0.0092355,95856.0,95851.0,0.008]
[1735215884870,0.0092355,95856.0,95851.0,0.002]
[1735215885314,0.0092355,95856.0,95849.0,0.208661]
[1735215885539,0.0092355,95856.0,95835.0,0.10263479]
[1735215885540,0.0092355,95856.0,95854.0,0.208648]
[1735215886000,8.56e-05,95856.0,95854.0,0.208648]
[1735215886224,0.01499746,95857.0,95854.0,0.417298]
[1735215886669,0.01499746,95857.0,95856.0,0.208646]
[1735215887219,0.01499746,95857.0,95854.0,0.211648]
[1735215887882,0.01499746,95857.0,95854.0,0.009]
[1735215888078,0.18108632,95856.0,95854.0,0.003]
[1735215888519,0.00915793,95855.0,95854.0,0.008]
[1735215889055,0.21780593,95855.0,95854.0,0.008]
[1735215889395,0.21780593,95855.0,95839.0,0.208681]
[1735215889626,0.21780593,95855.0,95854.0,0.003]
[1735215890051,0.21780593,95855.0,95828.0,0.02069999]
[1735215890052,0.208673,95844.0,95830.0,0.208702]
[1735215890260,0.12617775,95840.0,95830.0,0.208702]
[1735215890662,0.00915793,95839.0,95830.0,0.208702]
[1735215891633,0.00915793,95839.0,95828.0,0.0001712]
[1735215891836,0.208697,95833.0,95828.0,0.0001712]
[1735215892046,0.00905674,95832.0,95828.0,0.0001712]
[1735215892252,0.208687,95837.0,95830.0,0.006]
[1735215892452,0.00902805,95836.0,95828.0,0.0001712]
[1735215892658,0.12617775,95840.0,95830.0,0.002]
[1735215892859,0.009014,95839.0,95830.0,0.002]
[1735215893115,0.217697,95839.0,95830.0,0.00051998]
[1735215893417,0.217697,95839.0,95830.0,0.00251998]
[1735215894460,0.217697,95839.0,95830.0,0.00651998]
[1735215894647,0.009014,95839.0,95830.0,0.00451998]
[1735215894845,0.009014,95839.0,95830.0,0.00051998]
[1735215895146,0.009014,95839.0,95830.0,0.00551998]
[1735215895380,0.009014,95839.0,95830.0,0.00151998]
[1735215895621,0.009014,95839.0,95830.0,0.00051998]
[1735215895876,0.009014,95839.0,95830.0,0.00551998]
[1735215896371,0.009014,95839.0,95830.0,0.00451998]
[1735215896481,0.009014,95839.0,95830.0,0.00551998]
[1735215896728,0.009014,95839.0,95830.0,0.00151998]
[1735215897161,0.009014,95839.0,95830.0,0.00551998]
[1735215897613,0.009014,95839.0,95830.0,0.00851998]
[1735215897817,0.208685,95838.0,95830.0,0.00851998]
[1735215898050,0.208685,95838.0,95830.0,0.00951998]
[1735215898281,0.0090372,95837.0,95830.0,0.00951998]
[1735215898506,0.0090372,95837.0,95830.0,0.00051998]
[1735215898753,0.0090372,95837.0,95830.0,0.00551998]
[1735215899223,0.0090372,95837.0,95830.0,0.00451998]
[1735215899924,0.0090372,95837.0,95830.0,0.00151998]
[1735215900168,0.12617775,95840.0,95830.0,0.00651998]
[1735215900396,0.00903603,95836.0,95830.0,0.00651998]
[1735215900626,0.00903603,95835.0,95830.0,0.00151998]
[1735215900823,0.208683,95839.0,95830.0,0.00151998]
[1735215901280,0.0090385,95838.0,95830.0,0.00051998]
[1735215901476,0.0090385,95838.0,95830.0,0.00651998]
[1735215901655,0.208687,95837.0,95830.0,0.00651998]
[1735215901958,0.208687,95837.0,95830.0,0.00051998]
[1735215902156,0.0090385,95836.0,95830.0,0.00051998]
[1735215902377,0.0090385,95836.0,95830.0,0.00151998]
[1735215902781,0.0090385,95836.0,95830.0,0.00051998]
[1735215902985,0.208683,95839.0,95830.0,0.00051998]
[1735215903136,0.0090385,95835.0,95830.0,0.00551998]
[1735215903370,0.208683,95839.0,95830.0,0.00551998]
[1735215903582,0.0090385,95834.0,95830.0,0.00151998]
[1735215903818,0.208683,95839.0,95830.0,0.00751998]
[1735215903961,0.0090385,95833.0,95830.0,0.00751998]
[1735215904162,0.208683,95839.0,95830.0,0.00751998]
[1735215904396,0.27803688,95839.0,95830.0,0.01251998]
[1735215904605,0.0090385,95838.0,95830.0,0.00251998]
[1735215905054,0.0090385,95838.0,95830.0,0.00451998]
[1735215905468,0.0090385,95838.0,95830.0,0.00469118]
[1735215905669,0.0090385,95838.0,95830.0,0.00569118]
[1735215906104,0.0090385,95838.0,95830.0,0.00469118]
[1735215906301,0.0090385,95838.0,95830.0,0.00069118]
[1735215906528,0.0090385,95838.0,95830.0,0.00569118]
[1735215906931,0.0090385,95838.0,95830.0,0.00069118]
[1735215907339,0.0090385,95838.0,95830.0,0.00569118]
[1735215907538,0.01508306,95857.0,95831.0,0.2087]
[1735215907744,0.10398632,95856.0,95841.0,0.208678]
[1735215908442,0.01508306,95857.0,95846.0,0.208667]
[1735215908653,0.01508306,95857.0,95847.0,0.0791]
[1735215909765,0.01508306,95857.0,95852.0,0.208653]
[1735215911068,0.01508306,95857.0,95848.0,0.208663]
[1735215911783,0.01508306,95857.0,95852.0,0.002]
[1735215912225,0.01508306,95857.0,95848.0,0.417326]
[1735215912429,0.01508306,95857.0,95852.0,0.007]
[1735215912605,0.01508306,95857.0,95848.0,0.210663]
[1735215912760,0.01508306,95857.0,95848.0,0.419326]
[1735215912962,0.01508306,95857.0,95852.0,0.007]
[1735215913175,0.01508306,95857.0,95848.0,0.419326]
[1735215913395,0.01508306,95857.0,95848.0,0.426326]
[1735215913808,0.01508306,95857.0,95848.0,0.424326]
[1735215914009,0.01508306,95857.0,95852.0,0.002]
[1735215914621,0.01508306,95857.0,95848.0,0.215663]
[1735215914882,0.01508306,95857.0,95848.0,0.217663]
[1735215915291,0.01508306,95857.0,95848.0,0.208663]
[1735215915697,0.01508306,95857.0,95852.0,0.009]
[1735215915912,0.01508306,95857.0,95852.0,0.002]
[1735215917481,0.01508306,95857.0,95848.0,0.215663]
[1735215917721,0.01508306,95857.0,95848.0,0.217663]
[1735215918351,0.01508306,95857.0,95848.0,0.215663]
[1735215918595,0.01508306,95857.0,95852.0,0.002]
[1735215919010,0.01508306,95857.0,95852.0,0.007]
[1735215919222,0.01508306,95857.0,95848.0,0.208663]
[1735215919431,0.01508306,95857.0,95848.0,0.210663]
[1735215919641,0.01508306,95857.0,95848.0,0.217663]
[1735215919835,0.01508306,95857.0,95848.0,0.210663]
[1735215920234,0.01508306,95857.0,95852.0,0.007]
[1735215920421,0.01508306,95857.0,95848.0,0.002]
[1735215920619,0.01508306,95857.0,95848.0,0.009]
[1735215920974,0.0063352,95856.0,95848.0,0.009]
[1735215921196,0.0063352,95856.0,95848.0,0.007]
[1735215921399,0.0063352,95856.0,95852.0,0.002]
[1735215922016,0.0063352,95856.0,95848.0,0.007]
[1735215922527,0.0063352,95856.0,95848.0,0.002]
[1735215922859,0.0063352,95856.0,95848.0,0.009]
[1735215926166,8.56e-05,95857.0,95848.0,0.009]
[1735215926612,0.00524218,95856.0,95848.0,0.009]
[1735215926817,0.00524218,95856.0,95855.0,0.208648]
[1735215927029,0.00524218,95856.0,95855.0,0.41173432]
[1735215927227,8.56e-05,95857.0,95856.0,0.0991]
[1735215927454,8.56e-05,95857.0,95856.0,0.20412928]
[1735215928285,8.56e-05,95857.0,95856.0,0.45412928]
[1735215928495,8.56e-05,95857.0,95856.0,0.45308632]
[1735215929715,8.56e-05,95857.0,95856.0,0.79909356]
[1735215929919,8.55e-05,95863.0,95857.0,0.417288]
[1735215930137,8.55e-05,95863.0,95858.0,0.18112928]
[1735215930353,8.55e-05,95863.0,95862.0,0.208633]
[1735215930504,8.55e-05,95863.0,95862.0,0.31261932]
[1735215930705,8.55e-05,95863.0,95862.0,0.41171932]
[1735215930914,8.55e-05,95863.0,95862.0,0.45811932]
[1735215931509,0.00024118,95863.0,95862.0,0.45811932]
[1735215932560,0.00024118,95863.0,95862.0,0.80364487]
[1735215932761,0.00024118,95863.0,95862.0,0.81264487]
[1735215933323,0.00024118,95863.0,95862.0,0.82964487]
[1735215933535,0.00024118,95863.0,95862.0,1.01676941]
[1735215934851,0.0002,95889.0,95866.0,0.231624]
[1735215935038,0.0002,95889.0,95866.0,0.41111032]
[1735215936055,0.0002,95889.0,95866.0,0.50460822]
[1735215936197,0.0002,95889.0,95866.0,0.52060822]
[1735215936852,0.0002,95889.0,95866.0,0.49760822]
[1735215937432,0.0002,95889.0,95866.0,0.52060822]
[1735215937616,0.208541,95904.0,95888.0,0.208576]
[1735215937814,0.00015565,95895.0,95889.0,0.0208576]
[1735215938424,0.00015565,95895.0,95890.0,0.208572]
[1735215939470,0.00015565,95895.0,95890.0,0.417143]
[1735215940047,0.00015565,95895.0,95890.0,0.425143]
[1735215940257,0.00015565,95895.0,95892.0,0.417134]
[1735215942465,0.00015565,95895.0,95892.0,0.430134]
[1735215943751,0.00015565,95895.0,95892.0,0.417134]
[1735215943958,0.00015565,95895.0,95892.0,0.421134]
[1735215944162,0.00015565,95895.0,95892.0,0.430134]
[1735215946370,0.00015565,95895.0,95894.0,0.208563]
[1735215946550,0.00015565,95895.0,95894.0,0.46004932]
[1735215946753,0.0804,95936.0,95913.0,0.0755]
[1735215946985,0.00035562,95929.0,95926.0,0.208493]
[1735215947238,0.00035562,95929.0,95922.0,0.208501]
[1735215947560,0.00035562,95929.0,95922.0,0.2293511]
[1735215947973,0.00035562,95929.0,95922.0,0.0208501]
[1735215948179,0.00035562,95929.0,95923.0,0.2085]
[1735215948628,0.00035562,95929.0,95918.0,0.208509]
[1735215949382,0.00035562,95929.0,95926.0,0.006]
[1735215950232,0.00035562,95929.0,95922.0,0.2085]
[1735215950659,0.00035562,95929.0,95918.0,0.208509]
[1735215950883,0.00035562,95929.0,95926.0,0.001]
[1735215951055,0.00035562,95929.0,95926.0,0.006]
[1735215952120,0.00035562,95929.0,95926.0,0.001]
[1735215952291,0.00035562,95929.0,95918.0,0.208509]
[1735215952601,0.00035562,95929.0,95922.0,0.006]
[1735215952979,0.00035562,95929.0,95926.0,0.005]
[1735215953183,0.00035562,95929.0,95918.0,0.2577615]
[1735215953379,0.00035562,95929.0,95926.0,0.001]
[1735215953811,0.00044112,95929.0,95926.0,0.001]
[1735215954006,0.00044112,95929.0,95923.0,0.208499]
[1735215954212,0.00044112,95929.0,95926.0,0.005]
[1735215955492,0.00044112,95929.0,95923.0,0.208499]
[1735215955931,0.00044112,95929.0,95923.0,0.213499]
[1735215956132,0.00044112,95929.0,95926.0,0.001]
[1735215956519,0.00044112,95929.0,95926.0,0.005]
[1735215957240,0.00044112,95929.0,95923.0,0.214499]
[1735215958095,0.15,95927.0,95923.0,0.006]
[1735215958308,0.358498,95924.0,95923.0,0.005]
[1735215959013,0.15,95923.0,95908.0,0.208531]
[1735215960413,0.15,95923.0,95908.0,0.210531]
[1735215960765,0.208502,95922.0,95908.0,0.210531]
[1735215960968,0.208502,95922.0,95908.0,0.002]
[1735215961165,0.38775855,95921.0,95908.0,0.002]
[1735215961368,0.15,95925.0,95909.0,0.208531]
[1735215961778,0.208498,95924.0,95909.0,0.208531]
[1735215961978,0.208502,95922.0,95909.0,0.208531]
[1735215962351,0.12617775,95920.0,95909.0,0.208531]
[1735215963196,0.208491,95928.0,95911.0,0.208526]
[1735215963423,0.31247732,95928.0,95911.0,0.208526]
[1735215963618,0.31247732,95928.0,95911.0,0.417052]
[1735215964600,0.288063,95941.0,95912.0,0.10502894]
[1735215964813,0.39283152,95945.0,95925.0,0.208495]
[1735215965018,0.24183152,95945.0,95925.0,0.2293445]
[1735215965623,0.45028452,95945.0,95925.0,0.41699]
[1735215965843,0.24183152,95945.0,95927.0,0.208491]
[1735215966252,8.55e-05,95928.0,95927.0,0.208491]
[1735215967210,8.55e-05,95928.0,95927.0,0.217491]
[1735215967421,8.55e-05,95928.0,95927.0,0.220491]
[1735215967837,8.55e-05,95928.0,95927.0,0.2925591]
[1735215968414,8.55e-05,95928.0,95927.0,0.2895591]
[1735215968903,8.55e-05,95928.0,95927.0,0.2855591]
[1735215969111,8.55e-05,95928.0,95927.0,0.222491]
[1735215969307,8.55e-05,95928.0,95927.0,0.217491]
[1735215969487,8.55e-05,95928.0,95927.0,0.208491]
[1735215969702,8.55e-05,95928.0,95927.0,0.221491]
[1735215970123,8.55e-05,95928.0,95927.0,0.217491]
[1735215970332,8.55e-05,95928.0,95927.0,0.231491]
[1735215970530,8.55e-05,95928.0,95927.0,0.213491]
[1735215971599,8.55e-05,95928.0,95927.0,0.208491]
[1735215971966,8.55e-05,95928.0,95927.0,0.221491]
[1735215972296,8.55e-05,95928.0,95927.0,0.212491]
[1735215972517,8.55e-05,95928.0,95927.0,0.208491]
[1735215972723,8.55e-05,95928.0,95927.0,0.222491]
[1735215972940,8.55e-05,95928.0,95927.0,0.213491]
[1735215973185,8.55e-05,95928.0,95927.0,0.217491]
[1735215973436,8.55e-05,95928.0,95927.0,0.208491]
[1735215973647,8.55e-05,95928.0,95927.0,0.212491]
[1735215973869,8.55e-05,95928.0,95927.0,0.221491]
[1735215974112,8.55e-05,95928.0,95927.0,0.39674542]
[1735215974730,8.55e-05,95928.0,95927.0,0.39274542]
[1735215974977,8.55e-05,95928.0,95927.0,0.43724542]
[1735215975195,8.55e-05,95928.0,95927.0,0.55244542]
[1735215975431,8.55e-05,95928.0,95927.0,0.69344542]
[1735215975634,8.55e-05,95928.0,95927.0,0.68844542]
[1735215975843,8.55e-05,95928.0,95927.0,0.69744542]
[1735215976066,8.55e-05,95928.0,95927.0,0.70344542]
[1735215976480,8.55e-05,95928.0,95927.0,0.70644542]
[1735215976747,8.55e-05,95928.0,95927.0,0.68844542]
[1735215976928,8.55e-05,95928.0,95927.0,1.03339341]
[1735215977103,0.0142914,95949.0,95948.0,0.208446]
[1735215977745,0.1411914,95949.0,95931.0,0.208483]
[1735215977951,0.12617775,95941.0,95931.0,0.208483]
[1735215978160,0.01665655,95948.0,95927.0,0.56943899]
[1735215978388,0.1411914,95949.0,95933.0,0.208477]
[1735215978389,0.0615914,95949.0,95933.0,0.208477]
[1735215978599,0.0615914,95949.0,95928.0,0.208489]
[1735215978746,0.0615914,95949.0,95948.0,0.013]
[1735215979197,0.16557772,95949.0,95948.0,0.009]